[Event "*** Titled Tuesday Blitz"]
[Site "Chess.com"]
[Date "2021.02.09"]
[Round "3"]
[White "L1m96"]
[Black "leoduarte"]
[Result "1-0"]
[WhiteElo "2559"]
[BlackElo "2379"]
[TimeControl "180+1"]
[EndTime "10:31:52 PST"]
[Termination "L1m96 won by resignation"]

1. e4 {[%clk 0:02:37.4]} 1... c5 {[%clk 0:02:59.4]} 2. Nf3 {[%clk 0:02:37]} 2...
Nc6 {[%clk 0:02:58.9]} 3. d4 {[%clk 0:02:37.2]} 3... cxd4 {[%clk 0:02:59.8]} 4.
Nxd4 {[%clk 0:02:38.1]} 4... g6 {[%clk 0:03:00]} 5. c4 {[%clk 0:02:37.9]} 5...
Bg7 {[%clk 0:02:58.5]} 6. Be3 {[%clk 0:02:38.3]} 6... Nf6 {[%clk 0:02:58.3]} 7.
Nc3 {[%clk 0:02:38.2]} 7... d6 {[%clk 0:02:58.9]} 8. Be2 {[%clk 0:02:38]} 8...
O-O {[%clk 0:02:59.5]} 9. Rc1 {[%clk 0:02:37]} 9... Bd7 {[%clk 0:02:59.3]} 10.
Qd2 {[%clk 0:02:35.3]} 10... Nxd4 {[%clk 0:02:58.7]} 11. Bxd4 {[%clk 0:02:35.3]}
11... Bc6 {[%clk 0:02:59.2]} 12. f3 {[%clk 0:02:35.3]} 12... a5 {[%clk
0:02:58.1]} 13. b3 {[%clk 0:02:34.4]} 13... Nd7 {[%clk 0:02:57.7]} 14. Be3
{[%clk 0:02:34.1]} 14... Nc5 {[%clk 0:02:53.1]} 15. h4 {[%clk 0:02:31.2]} 15...
e6 {[%clk 0:02:23.4]} 16. h5 {[%clk 0:02:27.9]} 16... Qe7 {[%clk 0:02:19.6]} 17.
hxg6 {[%clk 0:02:06.9]} 17... fxg6 {[%clk 0:02:16.1]} 18. Bg5 {[%clk 0:01:58.5]}
18... Bf6 {[%clk 0:02:13.4]} 19. Bh6 {[%clk 0:01:46.9]} 19... Rfd8 {[%clk
0:02:06.8]} 20. Kf2 {[%clk 0:01:38.4]} 20... Qf7 {[%clk 0:01:29.4]} 21. Kg1
{[%clk 0:01:29.4]} 21... Be5 {[%clk 0:01:24.5]} 22. Be3 {[%clk 0:01:20.2]} 22...
b6 {[%clk 0:01:21.4]} 23. Rh3 {[%clk 0:01:15.5]} 23... Rf8 {[%clk 0:01:20.3]}
24. Rf1 {[%clk 0:01:06.5]} 24... Rad8 {[%clk 0:01:19.5]} 25. Bd4 {[%clk
0:00:54.4]} 25... Bxd4+ {[%clk 0:01:15.9]} 26. Qxd4 {[%clk 0:00:55.3]} 26... e5
{[%clk 0:01:15.7]} 27. Qe3 {[%clk 0:00:50.7]} 27... Qf4 {[%clk 0:01:04.1]} 28.
Qxf4 {[%clk 0:00:46.2]} 28... Rxf4 {[%clk 0:01:04.3]} 29. Rd1 {[%clk 0:00:41.3]}
29... h5 {[%clk 0:00:57.6]} 30. Nd5 {[%clk 0:00:33.4]} 30... Bxd5 {[%clk
0:00:55]} 31. cxd5 {[%clk 0:00:34.3]} 31... Rf7 {[%clk 0:00:40.8]} 32. Rc1
{[%clk 0:00:33.1]} 32... Rc7 {[%clk 0:00:37.4]} 33. Bb5 {[%clk 0:00:27.8]} 33...
Rdc8 {[%clk 0:00:28.9]} 34. Rh1 {[%clk 0:00:26.6]} 34... Kg7 {[%clk 0:00:19.8]}
35. Kh2 {[%clk 0:00:26.4]} 35... Kf6 {[%clk 0:00:18.1]} 36. Rc4 {[%clk
0:00:25.2]} 36... Nb7 {[%clk 0:00:14.5]} 37. Rc6 {[%clk 0:00:17.9]} 37... Rxc6
{[%clk 0:00:11.1]} 38. dxc6 {[%clk 0:00:11.8]} 38... Nc5 {[%clk 0:00:10.3]} 39.
Rb1 {[%clk 0:00:09]} 39... Rc7 {[%clk 0:00:08.8]} 40. a3 {[%clk 0:00:09.5]}
40... Ne6 {[%clk 0:00:08.6]} 41. Ba4 {[%clk 0:00:07.1]} 41... Nd4 {[%clk
0:00:06.6]} 42. b4 {[%clk 0:00:07.3]} 42... b5 {[%clk 0:00:06.3]} 43. Bd1 {[%clk
0:00:03.5]} 43... a4 {[%clk 0:00:04.5]} 44. Rc1 {[%clk 0:00:03]} 44... Rxc6
{[%clk 0:00:04.4]} 45. Rxc6 {[%clk 0:00:01.7]} 45... Nxc6 {[%clk 0:00:05.3]} 46.
Be2 {[%clk 0:00:02.6]} 46... Nd4 {[%clk 0:00:05.5]} 47. Bd3 {[%clk 0:00:03.4]}
47... g5 {[%clk 0:00:04.8]} 48. Kg3 {[%clk 0:00:03.8]} 48... Kg6 {[%clk
0:00:02]} 49. Kf2 {[%clk 0:00:04.7]} 49... Kf6 {[%clk 0:00:02.2]} 50. Ke3 {[%clk
0:00:05.6]} 50... h4 {[%clk 0:00:02.4]} 51. Kf2 {[%clk 0:00:05.9]} 51... Ke6
{[%clk 0:00:02.4]} 52. g3 {[%clk 0:00:06.5]} 52... hxg3+ {[%clk 0:00:02.5]} 53.
Kxg3 {[%clk 0:00:07.1]} 53... Kf6 {[%clk 0:00:03.4]} 54. Kf2 {[%clk 0:00:07.7]}
54... Ke6 {[%clk 0:00:03.8]} 55. Kg2 {[%clk 0:00:08.4]} 55... Kf6 {[%clk
0:00:04.2]} 56. Kg3 {[%clk 0:00:09.1]} 56... Ke6 {[%clk 0:00:04.5]} 57. Kg4
{[%clk 0:00:09.8]} 57... Kf6 {[%clk 0:00:04.8]} 58. Bf1 {[%clk 0:00:10.6]} 58...
Nc2 {[%clk 0:00:04.6]} 59. Bxb5 {[%clk 0:00:10.5]} 59... Nxa3 {[%clk 0:00:05.1]}
60. Bxa4 {[%clk 0:00:11.1]} 60... Nc4 {[%clk 0:00:04.4]} 61. Bb3 {[%clk
0:00:10.3]} 61... Nb6 {[%clk 0:00:02.5]} 62. Kg3 {[%clk 0:00:10.2]} 62... Nc8
{[%clk 0:00:02.2]} 63. Kf2 {[%clk 0:00:08.1]} 63... Nb6 {[%clk 0:00:02.7]} 64.
Ke3 {[%clk 0:00:08.4]} 64... Ke7 {[%clk 0:00:03.2]} 65. Kd3 {[%clk 0:00:08.6]}
65... Kd7 {[%clk 0:00:02.9]} 66. Kc3 {[%clk 0:00:08.7]} 66... Kc6 {[%clk
0:00:02.6]} 67. Be6 {[%clk 0:00:09]} 67... Kb5 {[%clk 0:00:02.3]} 68. Kb3 {[%clk
0:00:08.7]} 68... Kc6 {[%clk 0:00:01.9]} 69. Bf7 {[%clk 0:00:08.5]} 69... Kc7
{[%clk 0:00:01.7]} 70. Be8 {[%clk 0:00:08.4]} 70... Kd8 {[%clk 0:00:02.2]} 71.
Bb5 {[%clk 0:00:08]} 71... Kc7 {[%clk 0:00:03.1]} 72. Bf1 {[%clk 0:00:07.2]}
72... Kd8 {[%clk 0:00:04]} 73. Bh3 {[%clk 0:00:07.5]} 73... Kc7 {[%clk
0:00:04.9]} 74. b5 {[%clk 0:00:07.9]} 74... Kd8 {[%clk 0:00:04.7]} 75. Kb4
{[%clk 0:00:08.2]} 75... Kc7 {[%clk 0:00:04.9]} 76. Be6 {[%clk 0:00:08.7]} 76...
Kd8 {[%clk 0:00:04.3]} 77. Ka5 {[%clk 0:00:09.3]} 77... Kc7 {[%clk 0:00:04.9]}
78. Ka6 {[%clk 0:00:09.6]} 78... Na4 {[%clk 0:00:03.8]} 79. Ka5 {[%clk
0:00:07.6]} 79... Nb6 {[%clk 0:00:03.7]} 80. Bb3 {[%clk 0:00:07.8]} 80... Nd7
{[%clk 0:00:03.9]} 81. Kb4 {[%clk 0:00:06.1]} 81... Nb6 {[%clk 0:00:02.8]} 82.
Be6 {[%clk 0:00:06.1]} 82... Kd8 {[%clk 0:00:03.2]} 83. Bf5 {[%clk 0:00:04.6]}
83... Kc7 {[%clk 0:00:03.7]} 84. Kc3 {[%clk 0:00:04.6]} 84... Kd8 {[%clk
0:00:03.3]} 85. Kd3 {[%clk 0:00:04.8]} 85... Ke7 {[%clk 0:00:02.4]} 86. Ke3
{[%clk 0:00:04.7]} 86... Kf6 {[%clk 0:00:02.3]} 87. Bg4 {[%clk 0:00:03.7]} 87...
Ke7 {[%clk 0:00:03.2]} 88. Kf2 {[%clk 0:00:03.8]} 88... Kf6 {[%clk 0:00:03.7]}
89. Bh3 {[%clk 0:00:03.4]} 89... d5 {[%clk 0:00:03.9]} 90. exd5 {[%clk
0:00:03.3]} 90... Nxd5 {[%clk 0:00:04.5]} 91. Bf1 {[%clk 0:00:03.9]} 91... Nb6
{[%clk 0:00:04.6]} 92. Ke3 {[%clk 0:00:04.2]} 92... Ke6 {[%clk 0:00:04.3]} 93.
Ke4 {[%clk 0:00:04.8]} 93... Nd7 {[%clk 0:00:04.4]} 94. Bh3+ {[%clk 0:00:04.7]}
94... Kd6 {[%clk 0:00:04.2]} 95. Bxd7 {[%clk 0:00:04.6]} 95... Kxd7 {[%clk
0:00:04.5]} 96. Kxe5 {[%clk 0:00:05.2]} 96... Kc7 {[%clk 0:00:05.4]} 97. Kf5
{[%clk 0:00:05.8]} 97... Kb6 {[%clk 0:00:06.3]} 98. Kxg5 {[%clk 0:00:06.3]}
98... Kxb5 {[%clk 0:00:07.2]} 99. f4 {[%clk 0:00:06.9]} 99... Kc6 {[%clk
0:00:08.1]} 100. f5 {[%clk 0:00:07.5]} 100... Kd7 {[%clk 0:00:09]} 101. Kg6
{[%clk 0:00:08.2]} 101... Ke8 {[%clk 0:00:09.9]} 102. Kg7 {[%clk 0:00:08.7]}
102... Ke7 {[%clk 0:00:10.6]} 103. f6+ {[%clk 0:00:09.6]} 1-0

[Event "*** Titled Tuesday Blitz"]
[Site "Chess.com"]
[Date "2021.02.09"]
[Round "4"]
[White "MFguimaraes"]
[Black "juli2512"]
[Result "1-0"]
[WhiteElo "2413"]
[BlackElo "2172"]
[TimeControl "180+1"]
[EndTime "10:34:34 PST"]
[Termination "MFguimaraes won by checkmate"]

1. e4 {[%clk 0:03:00.9]} 1... c5 {[%clk 0:02:59.3]} 2. Nf3 {[%clk 0:03:00.5]}
2... d6 {[%clk 0:02:59.1]} 3. d4 {[%clk 0:03:01.1]} 3... cxd4 {[%clk 0:02:58.8]}
4. Nxd4 {[%clk 0:03:02]} 4... Nf6 {[%clk 0:02:59]} 5. Nc3 {[%clk 0:03:02.5]}
5... Nc6 {[%clk 0:02:59.2]} 6. Bg5 {[%clk 0:03:01.7]} 6... e6 {[%clk 0:02:58.9]}
7. Nxc6 {[%clk 0:02:55.2]} 7... bxc6 {[%clk 0:02:58.6]} 8. e5 {[%clk 0:02:55.1]}
8... dxe5 {[%clk 0:02:53.5]} 9. Qxd8+ {[%clk 0:02:54.9]} 9... Kxd8 {[%clk
0:02:53.4]} 10. O-O-O+ {[%clk 0:02:55.7]} 10... Kc7 {[%clk 0:02:52.7]} 11. f4
{[%clk 0:02:55]} 11... Bd6 {[%clk 0:02:48.4]} 12. Bxf6 {[%clk 0:02:52.8]} 12...
gxf6 {[%clk 0:02:47.8]} 13. Ne4 {[%clk 0:02:53.3]} 13... Be7 {[%clk 0:02:46.6]}
14. g3 {[%clk 0:02:51.7]} 14... Rb8 {[%clk 0:02:40.3]} 15. Bg2 {[%clk
0:02:48.9]} 15... f5 {[%clk 0:02:32.2]} 16. Ng5 {[%clk 0:02:48.4]} 16... Bxg5
{[%clk 0:02:30.8]} 17. fxg5 {[%clk 0:02:49.3]} 17... e4 {[%clk 0:02:31]} 18. g4
{[%clk 0:02:47.3]} 18... c5 {[%clk 0:02:19.8]} 19. gxf5 {[%clk 0:02:44.8]} 19...
exf5 {[%clk 0:02:19.9]} 20. Rd5 {[%clk 0:02:45.3]} 20... Kc6 {[%clk 0:02:13.9]}
21. Rhd1 {[%clk 0:02:44.1]} 21... Be6 {[%clk 0:02:13.8]} 22. Rd6+ {[%clk
0:02:43.7]} 22... Kc7 {[%clk 0:02:13]} 23. Ra6 {[%clk 0:02:42.3]} 23... Rb7
{[%clk 0:02:04.5]} 24. Rdd6 {[%clk 0:02:39.5]} 24... Rhb8 {[%clk 0:02:01.7]} 25.
Rac6# {[%clk 0:02:38.1]} 1-0

[Event "*** Titled Tuesday Blitz"]
[Site "Chess.com"]
[Date "2021.02.09"]
[Round "4"]
[White "Lion-Al-Messi"]
[Black "AryanTari"]
[Result "0-1"]
[WhiteElo "2550"]
[BlackElo "2896"]
[TimeControl "180+1"]
[EndTime "10:35:04 PST"]
[Termination "AryanTari won by resignation"]

1. e4 {[%clk 0:03:00.9]} 1... c6 {[%clk 0:02:59]} 2. Nf3 {[%clk 0:03:00.8]} 2...
d5 {[%clk 0:02:59.9]} 3. Nc3 {[%clk 0:03:01.3]} 3... Nf6 {[%clk 0:02:56.1]} 4.
e5 {[%clk 0:03:01.5]} 4... Ne4 {[%clk 0:02:56.6]} 5. Ne2 {[%clk 0:03:01.9]} 5...
Qb6 {[%clk 0:02:56.8]} 6. d4 {[%clk 0:03:01.3]} 6... e6 {[%clk 0:02:57.3]} 7.
Ng3 {[%clk 0:03:01.2]} 7... c5 {[%clk 0:02:57.6]} 8. c3 {[%clk 0:02:57.3]} 8...
Nc6 {[%clk 0:02:56.8]} 9. Bd3 {[%clk 0:02:57.2]} 9... Nxg3 {[%clk 0:02:56.8]}
10. hxg3 {[%clk 0:02:57.3]} 10... Bd7 {[%clk 0:02:54.8]} 11. Kf1 {[%clk
0:02:51.5]} 11... cxd4 {[%clk 0:02:54.5]} 12. cxd4 {[%clk 0:02:51.8]} 12... Rc8
{[%clk 0:02:41.1]} 13. a3 {[%clk 0:02:50.6]} 13... Na5 {[%clk 0:02:24.6]} 14. b4
{[%clk 0:02:50.2]} 14... Nc4 {[%clk 0:02:23.1]} 15. Bg5 {[%clk 0:02:50]} 15...
Nb2 {[%clk 0:02:21.3]} 16. Qb3 {[%clk 0:02:20.5]} 16... Nxd3 {[%clk 0:02:17.6]}
17. Kg1 {[%clk 0:02:20.7]} 17... Bb5 {[%clk 0:02:03.8]} 18. Rd1 {[%clk
0:02:17.6]} 18... Qa6 {[%clk 0:02:02.4]} 19. a4 {[%clk 0:02:09]} 19... Bc4
{[%clk 0:01:58.4]} 20. b5 {[%clk 0:02:04.6]} 20... Bxb3 {[%clk 0:01:57.1]} 0-1

[Event "*** Titled Tuesday Blitz"]
[Site "Chess.com"]
[Date "2021.02.09"]
[Round "4"]
[White "Adham_Fawzy"]
[Black "Gerodot71"]
[Result "1-0"]
[WhiteElo "2770"]
[BlackElo "2517"]
[TimeControl "180+1"]
[EndTime "10:35:13 PST"]
[Termination "Adham_Fawzy won by resignation"]

1. e4 {[%clk 0:03:00.9]} 1... c5 {[%clk 0:02:57.8]} 2. Nf3 {[%clk 0:02:57.4]}
2... d6 {[%clk 0:02:57.7]} 3. d4 {[%clk 0:02:57.9]} 3... cxd4 {[%clk 0:02:58.6]}
4. Nxd4 {[%clk 0:02:58.8]} 4... Nf6 {[%clk 0:02:57.7]} 5. Nc3 {[%clk 0:02:59.4]}
5... a6 {[%clk 0:02:57.2]} 6. Qd3 {[%clk 0:02:58.9]} 6... e5 {[%clk 0:02:47.5]}
7. Nb3 {[%clk 0:02:51.4]} 7... Nc6 {[%clk 0:02:44.9]} 8. Bg5 {[%clk 0:02:51.4]}
8... Be7 {[%clk 0:02:40.4]} 9. O-O-O {[%clk 0:02:50]} 9... Be6 {[%clk
0:02:36.8]} 10. Bxf6 {[%clk 0:02:49.5]} 10... gxf6 {[%clk 0:02:29.6]} 11. Nd5
{[%clk 0:02:49.2]} 11... Rc8 {[%clk 0:02:26.4]} 12. Kb1 {[%clk 0:02:26.5]} 12...
b5 {[%clk 0:01:58.8]} 13. Be2 {[%clk 0:02:17.8]} 13... Bxd5 {[%clk 0:01:54.4]}
14. Qxd5 {[%clk 0:02:14]} 14... Nb4 {[%clk 0:01:53.6]} 15. Qd2 {[%clk
0:02:14.1]} 15... d5 {[%clk 0:01:50.8]} 16. c3 {[%clk 0:02:11.5]} 16... Nc6
{[%clk 0:01:36.2]} 17. exd5 {[%clk 0:02:11]} 1-0

[Event "*** Titled Tuesday Blitz"]
[Site "Chess.com"]
[Date "2021.02.09"]
[Round "4"]
[White "JSMastropiero"]
[Black "mikolka1985"]
[Result "0-1"]
[WhiteElo "2426"]
[BlackElo "2611"]
[TimeControl "180+1"]
[EndTime "10:35:21 PST"]
[Termination "mikolka1985 won by resignation"]

1. Nf3 {[%clk 0:02:55.7]} 1... Nf6 {[%clk 0:02:57.9]} 2. g3 {[%clk 0:02:53.6]}
2... d5 {[%clk 0:02:56.3]} 3. Bg2 {[%clk 0:02:51.2]} 3... c6 {[%clk 0:02:55.6]}
4. c4 {[%clk 0:02:49.8]} 4... dxc4 {[%clk 0:02:52.7]} 5. Qc2 {[%clk 0:02:46.8]}
5... b5 {[%clk 0:02:50.2]} 6. b3 {[%clk 0:02:45]} 6... cxb3 {[%clk 0:02:48.4]}
7. axb3 {[%clk 0:02:43.3]} 7... e6 {[%clk 0:02:42.4]} 8. O-O {[%clk 0:02:40.2]}
8... Be7 {[%clk 0:02:41.1]} 9. d4 {[%clk 0:02:39.1]} 9... O-O {[%clk 0:02:40.1]}
10. Rd1 {[%clk 0:02:38.5]} 10... Bb7 {[%clk 0:02:39.6]} 11. Ne5 {[%clk
0:02:34.9]} 11... Nd5 {[%clk 0:02:36.4]} 12. e4 {[%clk 0:02:28.1]} 12... Nb4
{[%clk 0:02:34.4]} 13. Qe2 {[%clk 0:02:27.8]} 13... Nd7 {[%clk 0:02:28.5]} 14.
Nc3 {[%clk 0:02:02.6]} 14... Nxe5 {[%clk 0:02:26.8]} 15. dxe5 {[%clk 0:02:03.5]}
15... Qc7 {[%clk 0:02:27]} 16. f4 {[%clk 0:01:54.4]} 16... Rfd8 {[%clk
0:02:26.1]} 17. Be3 {[%clk 0:01:54.2]} 17... a6 {[%clk 0:02:24.1]} 18. Rac1
{[%clk 0:01:52.3]} 18... c5 {[%clk 0:02:22.9]} 19. Nd5 {[%clk 0:01:31.6]} 19...
exd5 {[%clk 0:02:20.8]} 20. exd5 {[%clk 0:01:32.5]} 20... Bxd5 {[%clk
0:02:18.7]} 0-1

[Event "*** Titled Tuesday Blitz"]
[Site "Chess.com"]
[Date "2021.02.09"]
[Round "4"]
[White "digilik"]
[Black "Gerasimenyuk_Miha"]
[Result "1-0"]
[WhiteElo "2239"]
[BlackElo "2415"]
[TimeControl "180+1"]
[EndTime "10:35:35 PST"]
[Termination "digilik won by resignation"]

1. e4 {[%clk 0:03:00.9]} 1... d5 {[%clk 0:02:58]} 2. exd5 {[%clk 0:03:00.3]}
2... Qxd5 {[%clk 0:02:58.9]} 3. Nc3 {[%clk 0:03:00.7]} 3... Qa5 {[%clk
0:02:59.3]} 4. d4 {[%clk 0:03:01.4]} 4... Nf6 {[%clk 0:02:59.6]} 5. Nf3 {[%clk
0:03:02]} 5... Nc6 {[%clk 0:03:00]} 6. Bd2 {[%clk 0:02:58]} 6... Bg4 {[%clk
0:02:59.5]} 7. Nb5 {[%clk 0:02:55.7]} 7... Qb6 {[%clk 0:02:59]} 8. c4 {[%clk
0:02:56.3]} 8... Bxf3 {[%clk 0:02:58.8]} 9. Qxf3 {[%clk 0:02:57.2]} 9... Nxd4
{[%clk 0:02:58.6]} 10. Nxd4 {[%clk 0:02:58.1]} 10... Qxd4 {[%clk 0:02:55.1]} 11.
Qxb7 {[%clk 0:02:58.6]} 11... Qe4+ {[%clk 0:02:55.3]} 12. Qxe4 {[%clk
0:02:59.3]} 12... Nxe4 {[%clk 0:02:55.3]} 13. Be3 {[%clk 0:02:59.8]} 13... e5
{[%clk 0:02:52.7]} 14. g3 {[%clk 0:02:59.9]} 14... Bb4+ {[%clk 0:02:52]} 15. Ke2
{[%clk 0:03:00.5]} 15... O-O-O {[%clk 0:02:51.7]} 16. Bg2 {[%clk 0:02:56.4]}
16... Nd6 {[%clk 0:02:48.7]} 17. a3 {[%clk 0:02:48.6]} 17... Ba5 {[%clk
0:02:40.4]} 18. c5 {[%clk 0:02:39.2]} 18... Nc4 {[%clk 0:02:35.8]} 19. b4 {[%clk
0:02:35.9]} 19... Nxe3 {[%clk 0:02:35.5]} 20. Kxe3 {[%clk 0:02:25.2]} 20... f5
{[%clk 0:02:33.6]} 21. bxa5 {[%clk 0:02:16.3]} 21... e4 {[%clk 0:02:32.5]} 22.
Rhd1 {[%clk 0:02:12]} 22... Kb7 {[%clk 0:02:31.9]} 23. f3 {[%clk 0:01:54.7]}
23... exf3 {[%clk 0:02:29.1]} 24. Bxf3+ {[%clk 0:01:55.6]} 24... Ka6 {[%clk
0:02:29.9]} 25. Rxd8 {[%clk 0:01:51.5]} 25... Rxd8 {[%clk 0:02:29.5]} 26. Rd1
{[%clk 0:01:52.4]} 26... Re8+ {[%clk 0:02:27.3]} 27. Kf4 {[%clk 0:01:50.6]}
27... Kxa5 {[%clk 0:02:28.2]} 28. Rd7 {[%clk 0:01:42.6]} 28... g6 {[%clk
0:02:22.4]} 29. Rxc7 {[%clk 0:01:40.4]} 29... Ka4 {[%clk 0:02:20.8]} 30. Bc6+
{[%clk 0:01:38.9]} 1-0

[Event "*** Titled Tuesday Blitz"]
[Site "Chess.com"]
[Date "2021.02.09"]
[Round "4"]
[White "JiiHart"]
[Black "J36225"]
[Result "0-1"]
[WhiteElo "2106"]
[BlackElo "2481"]
[TimeControl "180+1"]
[EndTime "10:35:59 PST"]
[Termination "J36225 won by resignation"]

1. e4 {[%clk 0:03:00.9]} 1... e5 {[%clk 0:02:58]} 2. Nf3 {[%clk 0:03:00.8]} 2...
Nc6 {[%clk 0:02:57.7]} 3. Bb5 {[%clk 0:03:00.8]} 3... a6 {[%clk 0:02:57.3]} 4.
Ba4 {[%clk 0:03:00.5]} 4... Nf6 {[%clk 0:02:57]} 5. O-O {[%clk 0:03:00.1]} 5...
Nxe4 {[%clk 0:02:56.3]} 6. d4 {[%clk 0:02:58]} 6... b5 {[%clk 0:02:56]} 7. Bb3
{[%clk 0:02:58.1]} 7... d5 {[%clk 0:02:55.7]} 8. dxe5 {[%clk 0:02:58.3]} 8...
Be6 {[%clk 0:02:56.2]} 9. Nbd2 {[%clk 0:02:54.8]} 9... Bc5 {[%clk 0:02:54.7]}
10. c3 {[%clk 0:02:46.2]} 10... O-O {[%clk 0:02:52.6]} 11. Bc2 {[%clk
0:02:34.3]} 11... Nxf2 {[%clk 0:02:51.8]} 12. Rxf2 {[%clk 0:02:32.5]} 12... f6
{[%clk 0:02:51.7]} 13. exf6 {[%clk 0:02:26.7]} 13... Bxf2+ {[%clk 0:02:51.4]}
14. Kxf2 {[%clk 0:02:26.2]} 14... Qxf6 {[%clk 0:02:52.3]} 15. Qe2 {[%clk
0:01:37.8]} 15... Rae8 {[%clk 0:02:44.3]} 16. Qd3 {[%clk 0:01:33.4]} 16... g6
{[%clk 0:02:42.5]} 17. Kg1 {[%clk 0:01:13.6]} 17... Kg7 {[%clk 0:02:37.3]} 18.
b3 {[%clk 0:00:41.6]} 18... Bf5 {[%clk 0:02:34.3]} 0-1

[Event "*** Titled Tuesday Blitz"]
[Site "Chess.com"]
[Date "2021.02.09"]
[Round "4"]
[White "Fighter008"]
[Black "Smile2005"]
[Result "1-0"]
[WhiteElo "2589"]
[BlackElo "2336"]
[TimeControl "180+1"]
[EndTime "10:36:10 PST"]
[Termination "Fighter008 won by resignation"]

1. e4 {[%clk 0:03:00.9]} 1... d5 {[%clk 0:02:59]} 2. exd5 {[%clk 0:03:00.3]}
2... Nf6 {[%clk 0:02:59.3]} 3. Bb5+ {[%clk 0:02:58.4]} 3... Bd7 {[%clk
0:02:59.1]} 4. Be2 {[%clk 0:02:58.5]} 4... Nxd5 {[%clk 0:02:59.1]} 5. d4 {[%clk
0:02:56.9]} 5... Bf5 {[%clk 0:02:59]} 6. Nf3 {[%clk 0:02:56.1]} 6... e6 {[%clk
0:02:59.2]} 7. O-O {[%clk 0:02:55.9]} 7... Be7 {[%clk 0:02:59.5]} 8. c4 {[%clk
0:02:56.3]} 8... Nb6 {[%clk 0:02:59.3]} 9. Nc3 {[%clk 0:02:55.6]} 9... O-O
{[%clk 0:02:59.1]} 10. Bf4 {[%clk 0:02:54.9]} 10... Nc6 {[%clk 0:02:58.8]} 11.
h3 {[%clk 0:02:53.6]} 11... a6 {[%clk 0:02:54]} 12. Rc1 {[%clk 0:02:52.9]} 12...
Qd7 {[%clk 0:02:54]} 13. Qd2 {[%clk 0:02:39.5]} 13... Rad8 {[%clk 0:02:53]} 14.
Rfd1 {[%clk 0:02:39.3]} 14... Bf6 {[%clk 0:02:48.5]} 15. d5 {[%clk 0:02:26.4]}
15... Ne7 {[%clk 0:02:30]} 16. d6 {[%clk 0:02:00.3]} 16... cxd6 {[%clk 0:02:26]}
17. Qxd6 {[%clk 0:01:57]} 17... Qxd6 {[%clk 0:02:23.8]} 18. Bxd6 {[%clk
0:01:57.9]} 18... Nbc8 {[%clk 0:02:18.5]} 19. Be5 {[%clk 0:01:56.4]} 19... Bxe5
{[%clk 0:02:17.5]} 20. Nxe5 {[%clk 0:01:57.3]} 20... Ng6 {[%clk 0:01:49.4]} 21.
Nd7 {[%clk 0:01:50.7]} 21... Rfe8 {[%clk 0:01:08.6]} 22. g4 {[%clk 0:01:50.3]}
1-0

[Event "*** Titled Tuesday Blitz"]
[Site "Chess.com"]
[Date "2021.02.09"]
[Round "4"]
[White "TimofeevAr"]
[Black "Alonmindlin"]
[Result "0-1"]
[WhiteElo "2861"]
[BlackElo "2690"]
[TimeControl "180+1"]
[EndTime "10:36:32 PST"]
[Termination "Alonmindlin won by resignation"]

1. c4 {[%clk 0:03:00.9]} 1... Nf6 {[%clk 0:02:57.8]} 2. Nc3 {[%clk 0:03:00.3]}
2... e5 {[%clk 0:02:57.8]} 3. e3 {[%clk 0:03:00]} 3... Bb4 {[%clk 0:02:56.9]} 4.
Nge2 {[%clk 0:02:59.7]} 4... O-O {[%clk 0:02:56.4]} 5. a3 {[%clk 0:02:59.4]}
5... Bxc3 {[%clk 0:02:55.9]} 6. Nxc3 {[%clk 0:02:59.4]} 6... d5 {[%clk
0:02:52.4]} 7. cxd5 {[%clk 0:02:59.2]} 7... Nxd5 {[%clk 0:02:53.3]} 8. Be2
{[%clk 0:02:58.7]} 8... Nc6 {[%clk 0:02:47.2]} 9. d3 {[%clk 0:02:57.3]} 9... Be6
{[%clk 0:02:42]} 10. O-O {[%clk 0:02:56.9]} 10... a5 {[%clk 0:02:41]} 11. Bd2
{[%clk 0:02:55.7]} 11... Qe7 {[%clk 0:02:40.1]} 12. Qc2 {[%clk 0:02:54.4]} 12...
Rfd8 {[%clk 0:02:39.5]} 13. Rac1 {[%clk 0:02:53.3]} 13... Nxc3 {[%clk
0:02:36.7]} 14. Bxc3 {[%clk 0:02:53.2]} 14... h6 {[%clk 0:02:36.7]} 15. Qa4
{[%clk 0:02:46.9]} 15... Bd5 {[%clk 0:02:35.5]} 16. Qb5 {[%clk 0:02:35.2]} 16...
Nd4 {[%clk 0:02:09.5]} 17. Bxd4 {[%clk 0:02:34.1]} 17... exd4 {[%clk 0:02:08.7]}
18. e4 {[%clk 0:02:34.4]} 18... Bc6 {[%clk 0:02:08.8]} 19. Qc4 {[%clk
0:02:27.1]} 19... Ra6 {[%clk 0:02:08]} 20. f4 {[%clk 0:02:13.5]} 20... Rb6
{[%clk 0:02:08]} 21. Rc2 {[%clk 0:02:13.3]} 21... Kh8 {[%clk 0:02:08.5]} 22. h3
{[%clk 0:02:07.4]} 22... f5 {[%clk 0:02:08.4]} 23. e5 {[%clk 0:02:05]} 23... Qh4
{[%clk 0:02:05.6]} 24. Kh2 {[%clk 0:01:53]} 24... Bxg2 {[%clk 0:02:03.7]} 25.
Rf3 {[%clk 0:01:24.3]} 25... Rg6 {[%clk 0:01:57.1]} 0-1

[Event "*** Titled Tuesday Blitz"]
[Site "Chess.com"]
[Date "2021.02.09"]
[Round "4"]
[White "jorquerino"]
[Black "ketster"]
[Result "1-0"]
[WhiteElo "2285"]
[BlackElo "2440"]
[TimeControl "180+1"]
[EndTime "10:36:58 PST"]
[Termination "jorquerino won by resignation"]

1. e4 {[%clk 0:03:00.9]} 1... e5 {[%clk 0:02:59.9]} 2. Nc3 {[%clk 0:03:00.4]}
2... Nf6 {[%clk 0:02:59.7]} 3. g3 {[%clk 0:03:00.2]} 3... d5 {[%clk 0:02:59.6]}
4. exd5 {[%clk 0:03:00.3]} 4... Nxd5 {[%clk 0:03:00.5]} 5. Bg2 {[%clk
0:03:00.6]} 5... Nxc3 {[%clk 0:03:01.1]} 6. bxc3 {[%clk 0:03:01.3]} 6... Bc5
{[%clk 0:02:59.5]} 7. Nf3 {[%clk 0:03:00.1]} 7... Nc6 {[%clk 0:02:59.4]} 8. O-O
{[%clk 0:02:58.9]} 8... O-O {[%clk 0:02:57.2]} 9. Rb1 {[%clk 0:02:57.4]} 9...
Rb8 {[%clk 0:02:53.1]} 10. d3 {[%clk 0:02:39.7]} 10... Bg4 {[%clk 0:02:52.7]}
11. h3 {[%clk 0:02:38.9]} 11... Bh5 {[%clk 0:02:46.2]} 12. g4 {[%clk 0:02:01.9]}
12... Bg6 {[%clk 0:02:45.2]} 13. Ng5 {[%clk 0:02:00.6]} 13... Be7 {[%clk
0:02:36.6]} 14. Ne4 {[%clk 0:01:34]} 14... f5 {[%clk 0:02:36.1]} 15. Ng3 {[%clk
0:01:23.9]} 15... fxg4 {[%clk 0:02:30]} 16. hxg4 {[%clk 0:01:23]} 16... Bg5
{[%clk 0:02:16.6]} 17. Be4 {[%clk 0:01:17.6]} 17... Bf4 {[%clk 0:02:07.8]} 18.
Bxg6 {[%clk 0:01:05.5]} 18... hxg6 {[%clk 0:02:07.8]} 19. Kg2 {[%clk 0:00:57.3]}
19... Qd5+ {[%clk 0:02:00.7]} 20. Ne4 {[%clk 0:00:55.1]} 20... Qxa2 {[%clk
0:02:00.3]} 21. Be3 {[%clk 0:00:43.9]} 21... Qd5 {[%clk 0:01:54.5]} 22. Qf3
{[%clk 0:00:37.1]} 22... Bxe3 {[%clk 0:01:49.7]} 23. Nf6+ {[%clk 0:00:36.3]} 1-0